[Event "Late-Titled-Tuesday-Blitz-June-25-2024"]
[Site "Chess.com"]
[Date "2024.06.25"]
[Round "6"]
[White "zajka-molotok"]
[Black "LikeWater"]
[Result "1-0"]
[WhiteElo "2551"]
[BlackElo "2686"]
[TimeControl "180+1"]
[EndTime "15:05:05 PDT"]
[Termination "zajka-molotok won on time"]

1. e4 {[%clk 0:03:00.9]} 1... c6 {[%clk 0:02:59.2]} 2. d4 {[%clk 0:03:00.2]}
2... d5 {[%clk 0:02:59.2]} 3. e5 {[%clk 0:03:00]} 3... c5 {[%clk 0:02:59]} 4.
dxc5 {[%clk 0:02:58.4]} 4... e6 {[%clk 0:02:59.3]} 5. Nf3 {[%clk 0:02:52.1]}
5... Nd7 {[%clk 0:02:58.3]} 6. a3 {[%clk 0:02:50.1]} 6... Nxc5 {[%clk
0:02:39.1]} 7. b4 {[%clk 0:02:49.4]} 7... Ne4 {[%clk 0:02:38.9]} 8. Bd3 {[%clk
0:02:48.8]} 8... f5 {[%clk 0:02:38]} 9. exf6 {[%clk 0:02:44.4]} 9... Ngxf6
{[%clk 0:02:28.6]} 10. O-O {[%clk 0:02:44]} 10... Bd6 {[%clk 0:02:28]} 11. Bb2
{[%clk 0:02:41.7]} 11... Qc7 {[%clk 0:02:20.9]} 12. Nbd2 {[%clk 0:02:38.6]}
12... O-O {[%clk 0:02:18.8]} 13. h3 {[%clk 0:02:31.3]} 13... Nc3 {[%clk
0:01:59.6]} 14. Qe1 {[%clk 0:02:30.3]} 14... e5 {[%clk 0:01:59.5]} 15. Nb3
{[%clk 0:02:21.8]} 15... d4 {[%clk 0:01:39.6]} 16. Bxc3 {[%clk 0:02:20.3]} 16...
dxc3 {[%clk 0:01:39.4]} 17. Ng5 {[%clk 0:02:18.1]} 17... Bd7 {[%clk 0:01:13.2]}
18. Ne4 {[%clk 0:02:17]} 18... Rac8 {[%clk 0:01:13]} 19. Nbc5 {[%clk 0:02:13.1]}
19... Bc6 {[%clk 0:01:05.8]} 20. Ne6 {[%clk 0:02:11.2]} 20... Qe7 {[%clk
0:01:01.3]} 21. Nxf8 {[%clk 0:02:10.6]} 21... Rxf8 {[%clk 0:01:01.9]} 22. Nxf6+
{[%clk 0:02:08]} 22... Rxf6 {[%clk 0:00:42.5]} 23. Qxc3 {[%clk 0:02:00.3]} 23...
e4 {[%clk 0:00:39.5]} 24. Rae1 {[%clk 0:01:59.6]} 24... Rf4 {[%clk 0:00:28.7]}
25. b5 {[%clk 0:01:56.1]} 25... Bd7 {[%clk 0:00:18.2]} 26. Re3 {[%clk
0:01:21.6]} 26... Kf8 {[%clk 0:00:10.5]} 27. Rfe1 {[%clk 0:01:01.3]} 27... Be5
{[%clk 0:00:07.5]} 28. Qb3 {[%clk 0:00:53.5]} 28... exd3 {[%clk 0:00:02]} 29.
Rxe5 {[%clk 0:00:53]} 29... Qd6 {[%clk 0:00:02.7]} 30. Qxd3 {[%clk 0:00:49.9]}
30... Qxd3 {[%clk 0:00:03.2]} 31. cxd3 {[%clk 0:00:50.8]} 31... Rd4 {[%clk
0:00:03.8]} 32. R1e3 {[%clk 0:00:47.8]} 32... Ra4 {[%clk 0:00:04]} 33. Rf3+
{[%clk 0:00:40.9]} 33... Kg8 {[%clk 0:00:03.9]} 34. Re7 {[%clk 0:00:40.6]} 34...
Bxb5 {[%clk 0:00:03.4]} 35. Rff7 {[%clk 0:00:38]} 35... Rxa3 {[%clk 0:00:02.7]}
36. Rxg7+ {[%clk 0:00:37.7]} 36... Kf8 {[%clk 0:00:03.4]} 37. Rgf7+ {[%clk
0:00:37.2]} 37... Kg8 {[%clk 0:00:03.8]} 38. Rg7+ {[%clk 0:00:34.3]} 38... Kf8
{[%clk 0:00:04.4]} 39. Rxh7 {[%clk 0:00:34.9]} 39... Kg8 {[%clk 0:00:05]} 40.
Reg7+ {[%clk 0:00:31.3]} 40... Kf8 {[%clk 0:00:05.1]} 41. Rxb7 {[%clk
0:00:31.9]} 41... Kg8 {[%clk 0:00:03.3]} 42. Rbg7+ {[%clk 0:00:31.8]} 42... Kf8
{[%clk 0:00:03.7]} 43. Rxa7 {[%clk 0:00:32.6]} 1-0

[Event "Late-Titled-Tuesday-Blitz-June-25-2024"]
[Site "Chess.com"]
[Date "2024.06.25"]
[Round "6"]
[White "JulbeNn"]
[Black "burbur555"]
[Result "0-1"]
[WhiteElo "2546"]
[BlackElo "2707"]
[TimeControl "180+1"]
[EndTime "15:05:08 PDT"]
[Termination "burbur555 won by resignation"]

1. e4 {[%clk 0:02:54.4]} 1... c6 {[%clk 0:03:00.9]} 2. Nf3 {[%clk 0:02:50.4]}
2... d5 {[%clk 0:03:01.8]} 3. exd5 {[%clk 0:02:50.7]} 3... cxd5 {[%clk
0:03:01.1]} 4. Ne5 {[%clk 0:02:51.3]} 4... Nf6 {[%clk 0:02:58.6]} 5. d4 {[%clk
0:02:51.4]} 5... Nc6 {[%clk 0:02:54.7]} 6. Bb5 {[%clk 0:02:51.4]} 6... Bd7
{[%clk 0:02:54.3]} 7. Nxd7 {[%clk 0:02:51.8]} 7... Qxd7 {[%clk 0:02:54]} 8. c3
{[%clk 0:02:51.8]} 8... e6 {[%clk 0:02:52.7]} 9. Nd2 {[%clk 0:02:51.4]} 9... a6
{[%clk 0:02:51]} 10. Bd3 {[%clk 0:02:51.3]} 10... Bd6 {[%clk 0:02:50]} 11. O-O
{[%clk 0:02:49.4]} 11... Qc7 {[%clk 0:02:48.6]} 12. Nf3 {[%clk 0:02:49.2]} 12...
Ne4 {[%clk 0:02:45.2]} 13. g3 {[%clk 0:02:35.5]} 13... f5 {[%clk 0:02:37.1]} 14.
Ng5 {[%clk 0:02:33.2]} 14... Nxg5 {[%clk 0:02:22.5]} 15. Bxg5 {[%clk 0:02:32.9]}
15... O-O {[%clk 0:02:22.5]} 16. Re1 {[%clk 0:02:19.9]} 16... Rae8 {[%clk
0:02:19]} 17. Qf3 {[%clk 0:02:03.2]} 17... f4 {[%clk 0:02:09.6]} 18. Qh5 {[%clk
0:00:36.8]} 18... g6 {[%clk 0:02:08.2]} 19. Bxg6 {[%clk 0:00:36.8]} 19... hxg6
{[%clk 0:02:07.5]} 20. Qxg6+ {[%clk 0:00:37.3]} 20... Qg7 {[%clk 0:02:05.9]} 21.
Rxe6 {[%clk 0:00:37.9]} 21... Be7 {[%clk 0:01:25]} 22. Qh5 {[%clk 0:00:23.3]}
22... Bxg5 {[%clk 0:01:13.1]} 23. Rg6 {[%clk 0:00:23.2]} 23... Bf6 {[%clk
0:01:09.9]} 24. Qxd5+ {[%clk 0:00:18]} 24... Rf7 {[%clk 0:01:09.2]} 25. Rxg7+
{[%clk 0:00:16.3]} 25... Kxg7 {[%clk 0:01:08.7]} 26. g4 {[%clk 0:00:13.4]} 26...
f3 {[%clk 0:01:06]} 27. Kf1 {[%clk 0:00:08.9]} 27... Re2 {[%clk 0:00:49.8]} 28.
Re1 {[%clk 0:00:04.3]} 28... Rxb2 {[%clk 0:00:48.3]} 29. g5 {[%clk 0:00:04.4]}
29... Be7 {[%clk 0:00:45.7]} 30. c4 {[%clk 0:00:03.7]} 30... Bb4 {[%clk
0:00:43]} 31. Rd1 {[%clk 0:00:03]} 31... Re2 {[%clk 0:00:40.1]} 32. c5 {[%clk
0:00:02.9]} 32... Bc3 {[%clk 0:00:31]} 33. h4 {[%clk 0:00:02.9]} 33... Nxd4
{[%clk 0:00:25.4]} 34. Qc4 {[%clk 0:00:03.2]} 34... Nb5 {[%clk 0:00:20.7]} 35.
Kg1 {[%clk 0:00:02]} 35... Rfe7 {[%clk 0:00:16.5]} 36. Rf1 {[%clk 0:00:01.8]}
36... R2e4 {[%clk 0:00:16]} 37. Kh2 {[%clk 0:00:02.2]} 37... Rxc4 {[%clk
0:00:14.5]} 0-1

[Event "Late-Titled-Tuesday-Blitz-June-25-2024"]
[Site "Chess.com"]
[Date "2024.06.25"]
[Round "6"]
[White "VirtualCoach"]
[Black "cukricek"]
[Result "1-0"]
[WhiteElo "2357"]
[BlackElo "2484"]
[TimeControl "180+1"]
[EndTime "15:05:08 PDT"]
[Termination "VirtualCoach won by resignation"]

1. e4 {[%clk 0:03:00.9]} 1... c5 {[%clk 0:02:43.2]} 2. Nf3 {[%clk 0:02:59.2]}
2... g6 {[%clk 0:02:43.2]} 3. c3 {[%clk 0:02:58.2]} 3... d5 {[%clk 0:02:42.8]}
4. e5 {[%clk 0:02:57.4]} 4... Nc6 {[%clk 0:02:42.3]} 5. d4 {[%clk 0:02:57.6]}
5... Bg4 {[%clk 0:02:42.5]} 6. Be2 {[%clk 0:02:55.6]} 6... Bxf3 {[%clk
0:02:36.3]} 7. Bxf3 {[%clk 0:02:54.8]} 7... cxd4 {[%clk 0:02:36.8]} 8. cxd4
{[%clk 0:02:53.3]} 8... Nh6 {[%clk 0:02:37.1]} 9. Na3 {[%clk 0:02:45.3]} 9...
Nf5 {[%clk 0:02:33]} 10. Nc2 {[%clk 0:02:44.2]} 10... h5 {[%clk 0:02:28.2]} 11.
O-O {[%clk 0:02:41.9]} 11... e6 {[%clk 0:02:24.6]} 12. a3 {[%clk 0:02:38.1]}
12... h4 {[%clk 0:02:21.3]} 13. h3 {[%clk 0:02:37.5]} 13... Bh6 {[%clk
0:02:15.4]} 14. Bg4 {[%clk 0:02:28.4]} 14... Bxc1 {[%clk 0:02:13.7]} 15. Rxc1
{[%clk 0:02:27.8]} 15... Qg5 {[%clk 0:02:10.9]} 16. Bxf5 {[%clk 0:02:19.6]}
16... gxf5 {[%clk 0:02:10.2]} 17. Qf3 {[%clk 0:02:15.9]} 17... Rc8 {[%clk
0:02:07.1]} 18. Ne3 {[%clk 0:01:57.2]} 18... Ke7 {[%clk 0:02:01.7]} 19. Rcd1
{[%clk 0:01:51.5]} 19... Rhg8 {[%clk 0:01:57.5]} 20. Rd3 {[%clk 0:01:47.1]}
20... Na5 {[%clk 0:01:54.7]} 21. b4 {[%clk 0:01:39.2]} 21... Nc4 {[%clk
0:01:53.8]} 22. Rc1 {[%clk 0:01:36.7]} 22... Nxe3 {[%clk 0:01:49.3]} 23. Rxc8
{[%clk 0:01:30.4]} 23... Rxc8 {[%clk 0:01:41.8]} 24. Qxe3 {[%clk 0:01:29.8]}
24... Rc1+ {[%clk 0:01:32.6]} 25. Kh2 {[%clk 0:01:27.9]} 25... Qxe3 {[%clk
0:01:31.5]} 26. fxe3 {[%clk 0:01:27.7]} 26... f6 {[%clk 0:01:19.2]} 27. exf6+
{[%clk 0:01:27]} 27... Kxf6 {[%clk 0:01:20.1]} 28. Rb3 {[%clk 0:01:25.1]} 28...
e5 {[%clk 0:01:14.3]} 29. dxe5+ {[%clk 0:01:20.7]} 29... Kxe5 {[%clk 0:01:15.2]}
30. Rd3 {[%clk 0:01:20.3]} 30... Re1 {[%clk 0:01:12.8]} 31. a4 {[%clk 0:01:17]}
31... Rb1 {[%clk 0:01:11.5]} 32. Rd4 {[%clk 0:01:14.9]} 32... Rb3 {[%clk
0:01:10.7]} 33. Rxh4 {[%clk 0:01:14]} 33... Rxe3 {[%clk 0:01:10.6]} 34. Rh7
{[%clk 0:01:13.9]} 34... Ra3 {[%clk 0:00:57.9]} 35. Rxb7 {[%clk 0:01:11.4]}
35... Rxa4 {[%clk 0:00:57.4]} 36. h4 {[%clk 0:01:12]} 36... a5 {[%clk
0:00:56.2]} 37. bxa5 {[%clk 0:00:54.3]} 37... Rxh4+ {[%clk 0:00:55.8]} 38. Kg3
{[%clk 0:00:54.5]} 38... Ra4 {[%clk 0:00:55.7]} 39. Rb5 {[%clk 0:00:54.8]} 39...
Ke4 {[%clk 0:00:55.5]} 40. Kf2 {[%clk 0:00:50.6]} 40... Ra2+ {[%clk 0:00:53.9]}
41. Kf1 {[%clk 0:00:44.4]} 41... d4 {[%clk 0:00:53.5]} 42. g3 {[%clk 0:00:35.3]}
42... d3 {[%clk 0:00:52.8]} 43. Ke1 {[%clk 0:00:34.1]} 43... Rg2 {[%clk
0:00:48]} 44. a6 {[%clk 0:00:28.2]} 44... Rxg3 {[%clk 0:00:46.8]} 45. a7 {[%clk
0:00:26.7]} 45... Rg8 {[%clk 0:00:47.3]} 46. Rb8 {[%clk 0:00:25.7]} 46... Rg1+
{[%clk 0:00:46.9]} 47. Kd2 {[%clk 0:00:24]} 47... Rg2+ {[%clk 0:00:42.3]} 48.
Kc3 {[%clk 0:00:21.2]} 1-0

[Event "Late-Titled-Tuesday-Blitz-June-25-2024"]
[Site "Chess.com"]
[Date "2024.06.25"]
[Round "6"]
[White "wild3000"]
[Black "NigiriSushies"]
[Result "1-0"]
[WhiteElo "2522"]
[BlackElo "2295"]
[TimeControl "180+1"]
[EndTime "15:05:09 PDT"]
[Termination "wild3000 won on time"]

1. h4 {[%clk 0:02:59.2]} 1... b6 {[%clk 0:02:53.7]} 2. h5 {[%clk 0:03:00.1]}
2... Bb7 {[%clk 0:02:52.1]} 3. a4 {[%clk 0:03:01]} 3... a5 {[%clk 0:02:49]} 4.
Nc3 {[%clk 0:03:00.9]} 4... Nf6 {[%clk 0:02:44.7]} 5. d3 {[%clk 0:03:00.9]} 5...
h6 {[%clk 0:02:43.7]} 6. e4 {[%clk 0:03:00.9]} 6... e6 {[%clk 0:02:41.6]} 7.
Nge2 {[%clk 0:02:58.7]} 7... Bb4 {[%clk 0:02:37.3]} 8. Ng3 {[%clk 0:02:56.4]}
8... d5 {[%clk 0:02:33.7]} 9. Bd2 {[%clk 0:02:55.9]} 9... Nbd7 {[%clk
0:02:27.6]} 10. Be2 {[%clk 0:02:54.8]} 10... O-O {[%clk 0:02:11.9]} 11. O-O
{[%clk 0:02:54.6]} 11... dxe4 {[%clk 0:02:08.4]} 12. Ncxe4 {[%clk 0:02:53.2]}
12... Bxd2 {[%clk 0:02:06.6]} 13. Qxd2 {[%clk 0:02:53.4]} 13... Nxe4 {[%clk
0:02:06.4]} 14. dxe4 {[%clk 0:02:54.3]} 14... Nc5 {[%clk 0:02:04.3]} 15. Qf4
{[%clk 0:02:53.7]} 15... Qd6 {[%clk 0:01:58.6]} 16. Qxd6 {[%clk 0:02:52.4]}
16... cxd6 {[%clk 0:01:56.8]} 17. f3 {[%clk 0:02:52.7]} 17... d5 {[%clk
0:01:55.4]} 18. exd5 {[%clk 0:02:41.2]} 18... Bxd5 {[%clk 0:01:54.7]} 19. Rfd1
{[%clk 0:02:40.4]} 19... Rac8 {[%clk 0:01:53.8]} 20. Bb5 {[%clk 0:02:39.5]}
20... Nb7 {[%clk 0:01:47.4]} 21. Rd2 {[%clk 0:02:37]} 21... Nd6 {[%clk
0:01:46.8]} 22. Ba6 {[%clk 0:02:31.5]} 22... Rc7 {[%clk 0:01:45.1]} 23. Ne2
{[%clk 0:02:26.3]} 23... Ra8 {[%clk 0:01:43.6]} 24. Bd3 {[%clk 0:02:24.9]} 24...
Bc4 {[%clk 0:01:39.7]} 25. Nc3 {[%clk 0:02:17.6]} 25... Bxd3 {[%clk 0:01:37.5]}
26. Rxd3 {[%clk 0:02:17.9]} 26... Nc4 {[%clk 0:01:34.4]} 27. Nb5 {[%clk
0:02:17.8]} 27... Rc5 {[%clk 0:01:22.5]} 28. b3 {[%clk 0:02:16.4]} 28... Ne5
{[%clk 0:01:16.5]} 29. Rd2 {[%clk 0:02:15.2]} 29... Rac8 {[%clk 0:01:15.2]} 30.
c4 {[%clk 0:02:14.7]} 30... Nc6 {[%clk 0:01:10.7]} 31. g4 {[%clk 0:02:10.3]}
31... Nb4 {[%clk 0:01:09.2]} 32. Rad1 {[%clk 0:02:06.6]} 32... R5c6 {[%clk
0:01:04.2]} 33. Kf2 {[%clk 0:02:06.4]} 33... Rc5 {[%clk 0:01:02.3]} 34. Rd8+
{[%clk 0:02:05.9]} 34... Kh7 {[%clk 0:00:59.1]} 35. Rxc8 {[%clk 0:02:05.8]}
35... Rxc8 {[%clk 0:01:00]} 36. Rd7 {[%clk 0:01:57.9]} 36... f6 {[%clk
0:00:58.1]} 37. Nd6 {[%clk 0:01:53.2]} 37... Rb8 {[%clk 0:00:54.5]} 38. Re7
{[%clk 0:01:48.5]} 38... Nd3+ {[%clk 0:00:48.4]} 39. Kg3 {[%clk 0:01:48.1]}
39... Nc5 {[%clk 0:00:48.3]} 40. Ne8 {[%clk 0:01:35.3]} 40... Kg8 {[%clk
0:00:37.3]} 41. Nxg7 {[%clk 0:01:32.5]} 41... Kf8 {[%clk 0:00:30.5]} 42. Ra7
{[%clk 0:01:31.6]} 42... Nxb3 {[%clk 0:00:15.7]} 43. Nxe6+ {[%clk 0:01:31.2]}
43... Kg8 {[%clk 0:00:15.6]} 44. Rg7+ {[%clk 0:01:29.8]} 44... Kh8 {[%clk
0:00:15.2]} 45. Rf7 {[%clk 0:01:28.5]} 45... Nd2 {[%clk 0:00:11]} 46. Rxf6
{[%clk 0:01:23.4]} 46... Kh7 {[%clk 0:00:09.4]} 47. Rf7+ {[%clk 0:01:23]} 47...
Kg8 {[%clk 0:00:08]} 48. Rc7 {[%clk 0:01:22.6]} 48... Nf1+ {[%clk 0:00:05.9]}
49. Kf4 {[%clk 0:01:21.6]} 49... Nd2 {[%clk 0:00:05.3]} 50. Ke3 {[%clk
0:01:19.8]} 50... Nf1+ {[%clk 0:00:03.6]} 51. Kd4 {[%clk 0:01:16.5]} 51... Re8
{[%clk 0:00:01.4]} 52. Rg7+ {[%clk 0:01:09.2]} 52... Kh8 {[%clk 0:00:01.3]} 53.
Rg6 {[%clk 0:01:10.1]} 53... Nd2 {[%clk 0:00:01.1]} 54. f4 {[%clk 0:01:08]} 1-0

[Event "Late-Titled-Tuesday-Blitz-June-25-2024"]
[Site "Chess.com"]
[Date "2024.06.25"]
[Round "6"]
[White "ozates"]
[Black "Pachonpower"]
[Result "0-1"]
[WhiteElo "2610"]
[BlackElo "2473"]
[TimeControl "180+1"]
[EndTime "15:05:14 PDT"]
[Termination "Pachonpower won on time"]

1. e4 {[%clk 0:03:00.9]} 1... c5 {[%clk 0:03:00.1]} 2. Nf3 {[%clk 0:03:01.1]}
2... d6 {[%clk 0:03:00.5]} 3. d4 {[%clk 0:03:01.7]} 3... cxd4 {[%clk 0:03:01.4]}
4. Nxd4 {[%clk 0:03:02.3]} 4... Nf6 {[%clk 0:03:02.2]} 5. Nc3 {[%clk 0:03:02.8]}
5... a6 {[%clk 0:03:02.7]} 6. g3 {[%clk 0:03:03.2]} 6... e5 {[%clk 0:03:02.2]}
7. Nde2 {[%clk 0:03:02]} 7... Be7 {[%clk 0:03:01.4]} 8. Bg2 {[%clk 0:03:01.9]}
8... b5 {[%clk 0:03:01.5]} 9. O-O {[%clk 0:03:01.2]} 9... O-O {[%clk 0:03:01.8]}
10. a4 {[%clk 0:03:01]} 10... b4 {[%clk 0:03:01.1]} 11. Nd5 {[%clk 0:03:01.4]}
11... Nxd5 {[%clk 0:02:59.3]} 12. Qxd5 {[%clk 0:02:57.6]} 12... Ra7 {[%clk
0:02:59]} 13. a5 {[%clk 0:02:56.3]} 13... Be6 {[%clk 0:02:58.2]} 14. Qd3 {[%clk
0:02:55.8]} 14... Nd7 {[%clk 0:02:55.1]} 15. Be3 {[%clk 0:02:55.1]} 15... Nc5
{[%clk 0:02:49.6]} 16. Qd2 {[%clk 0:02:54.1]} 16... Rb7 {[%clk 0:02:48.1]} 17.
f4 {[%clk 0:02:53.7]} 17... f6 {[%clk 0:02:47]} 18. b3 {[%clk 0:02:44]} 18...
Rb5 {[%clk 0:02:44]} 19. h3 {[%clk 0:02:27.6]} 19... Qd7 {[%clk 0:02:38.1]} 20.
f5 {[%clk 0:02:26]} 20... Bf7 {[%clk 0:02:32.7]} 21. g4 {[%clk 0:02:26.7]} 21...
Qc6 {[%clk 0:02:28.8]} 22. g5 {[%clk 0:02:20.7]} 22... Nxe4 {[%clk 0:02:25.6]}
23. Qd3 {[%clk 0:02:05.3]} 23... d5 {[%clk 0:02:25.2]} 24. Rad1 {[%clk
0:01:40.2]} 24... Bc5 {[%clk 0:02:18.6]} 25. Kh2 {[%clk 0:01:34.3]} 25... Bxe3
{[%clk 0:02:17.9]} 26. Qxe3 {[%clk 0:01:34.6]} 26... Nxg5 {[%clk 0:02:14.2]} 27.
h4 {[%clk 0:01:28.3]} 27... Ne4 {[%clk 0:02:11.3]} 28. Bxe4 {[%clk 0:01:28.4]}
28... dxe4 {[%clk 0:02:12.2]} 29. Rg1 {[%clk 0:01:28.8]} 29... Qc5 {[%clk
0:01:47.7]} 30. Qg3 {[%clk 0:01:27.8]} 30... g6 {[%clk 0:01:46.4]} 31. fxg6
{[%clk 0:01:22.8]} 31... hxg6 {[%clk 0:01:46.7]} 32. Rdf1 {[%clk 0:01:15.1]}
32... Qe7 {[%clk 0:01:36.7]} 33. h5 {[%clk 0:01:13.6]} 33... g5 {[%clk
0:01:37.1]} 34. h6 {[%clk 0:00:59.8]} 34... Kh7 {[%clk 0:01:31.9]} 35. Qg4
{[%clk 0:00:49.3]} 35... Bg6 {[%clk 0:01:30.9]} 36. Ng3 {[%clk 0:00:49.2]} 36...
Rc5 {[%clk 0:01:21.2]} 37. Rg2 {[%clk 0:00:44]} 37... e3 {[%clk 0:01:14.7]} 38.
Qxb4 {[%clk 0:00:43.3]} 38... f5 {[%clk 0:01:10.6]} 39. Re2 {[%clk 0:00:14.5]}
39... Rfc8 {[%clk 0:00:47.3]} 40. Kg1 {[%clk 0:00:04.9]} 40... f4 {[%clk
0:00:41.2]} 41. Ne4 {[%clk 0:00:04.8]} 41... Kxh6 {[%clk 0:00:35.3]} 42. Nxc5
{[%clk 0:00:03.3]} 42... Rxc5 {[%clk 0:00:36.2]} 43. Rh2+ {[%clk 0:00:02.7]}
43... Kg7 {[%clk 0:00:36.3]} 44. Qb8 {[%clk 0:00:02.5]} 44... Kf6 {[%clk
0:00:26.6]} 45. Qb6+ {[%clk 0:00:02]} 45... Kf5 {[%clk 0:00:24.4]} 0-1

[Event "Late-Titled-Tuesday-Blitz-June-25-2024"]
[Site "Chess.com"]
[Date "2024.06.25"]
[Round "6"]
[White "KNVB"]
[Black "Perecke"]
[Result "1-0"]
[WhiteElo "2689"]
[BlackElo "2508"]
[TimeControl "180+1"]
[EndTime "15:05:15 PDT"]
[Termination "KNVB won by checkmate"]

1. d4 {[%clk 0:03:00.9]} 1... d5 {[%clk 0:02:59.9]} 2. Bf4 {[%clk 0:03:00.9]}
2... c5 {[%clk 0:02:59.4]} 3. e3 {[%clk 0:03:01]} 3... Nc6 {[%clk 0:02:59.9]} 4.
c3 {[%clk 0:03:01.2]} 4... Qb6 {[%clk 0:02:57.9]} 5. Qb3 {[%clk 0:03:00.8]} 5...
c4 {[%clk 0:02:53.2]} 6. Qc2 {[%clk 0:02:58.3]} 6... Bf5 {[%clk 0:02:51.1]} 7.
Qxf5 {[%clk 0:02:58]} 7... Qxb2 {[%clk 0:02:50.9]} 8. Qxd5 {[%clk 0:02:57.4]}
8... Qxa1 {[%clk 0:02:51.2]} 9. Qb5 {[%clk 0:02:57.5]} 9... O-O-O {[%clk
0:02:38.4]} 10. Nf3 {[%clk 0:02:57.5]} 10... Qxa2 {[%clk 0:02:36]} 11. Bxc4
{[%clk 0:02:57.7]} 11... Qa5 {[%clk 0:02:30.9]} 12. Qxa5 {[%clk 0:02:31.2]}
12... Nxa5 {[%clk 0:02:31.8]} 13. Bxf7 {[%clk 0:02:31.9]} 13... b6 {[%clk
0:02:10.7]} 14. Ng5 {[%clk 0:00:44.6]} 14... Nh6 {[%clk 0:01:58.9]} 15. Be6+
{[%clk 0:00:43.9]} 15... Kb7 {[%clk 0:01:58.8]} 16. Nd2 {[%clk 0:00:40]} 16...
Nc6 {[%clk 0:01:46.6]} 17. d5 {[%clk 0:00:24]} 17... Na5 {[%clk 0:01:45.1]} 18.
Ke2 {[%clk 0:00:19.8]} 18... g6 {[%clk 0:01:36.4]} 19. Be5 {[%clk 0:00:19.6]}
19... Rg8 {[%clk 0:01:28.8]} 20. Bxg8 {[%clk 0:00:05.5]} 20... Nxg8 {[%clk
0:01:29.7]} 21. c4 {[%clk 0:00:05.2]} 21... Bh6 {[%clk 0:01:19.4]} 22. Ne6
{[%clk 0:00:05.1]} 22... Rc8 {[%clk 0:01:18.8]} 23. Kd3 {[%clk 0:00:05.8]} 23...
Nf6 {[%clk 0:01:11.3]} 24. Rb1 {[%clk 0:00:03.8]} 24... Nd7 {[%clk 0:01:06.4]}
25. Bd4 {[%clk 0:00:01.5]} 25... Ka8 {[%clk 0:00:56.5]} 26. g4 {[%clk
0:00:01.9]} 26... Nb7 {[%clk 0:00:53.4]} 27. g5 {[%clk 0:00:01.9]} 27... Bf8
{[%clk 0:00:49.3]} 28. Ne4 {[%clk 0:00:02.6]} 28... Na5 {[%clk 0:00:34]} 29. Nd2
{[%clk 0:00:02.5]} 29... Nb7 {[%clk 0:00:33.8]} 30. Ne4 {[%clk 0:00:03.1]} 30...
Na5 {[%clk 0:00:27]} 31. Rb4 {[%clk 0:00:03.8]} 31... Nb7 {[%clk 0:00:24.7]} 32.
h4 {[%clk 0:00:03.7]} 32... Nbc5+ {[%clk 0:00:24.5]} 33. Bxc5 {[%clk 0:00:02.9]}
33... bxc5 {[%clk 0:00:23.9]} 34. Ra4 {[%clk 0:00:03.5]} 34... Ne5+ {[%clk
0:00:23.7]} 35. Kc3 {[%clk 0:00:03.7]} 35... Nf3 {[%clk 0:00:21.5]} 36. N4xc5
{[%clk 0:00:03.8]} 36... Nxh4 {[%clk 0:00:20.8]} 37. Nd7 {[%clk 0:00:02.9]}
37... Kb7 {[%clk 0:00:19.8]} 38. Ndxf8 {[%clk 0:00:02.7]} 38... Nf5 {[%clk
0:00:17.3]} 39. Rb4+ {[%clk 0:00:02.8]} 39... Ka8 {[%clk 0:00:17.1]} 40. Nd7
{[%clk 0:00:03]} 40... Nd6 {[%clk 0:00:16.6]} 41. f3 {[%clk 0:00:02.7]} 41...
Nf5 {[%clk 0:00:16.3]} 42. e4 {[%clk 0:00:02.9]} 42... Nh4 {[%clk 0:00:16.7]}
43. c5 {[%clk 0:00:03.1]} 43... Nxf3 {[%clk 0:00:16.5]} 44. c6 {[%clk 0:00:04]}
44... Ne5 {[%clk 0:00:15.6]} 45. Rb8+ {[%clk 0:00:03.3]} 45... Rxb8 {[%clk
0:00:15.3]} 46. Nc7# {[%clk 0:00:04]} 1-0

[Event "Late-Titled-Tuesday-Blitz-June-25-2024"]
[Site "Chess.com"]
[Date "2024.06.25"]
[Round "6"]
[White "anasta10"]
[Black "Chessmissile07"]
[Result "1/2-1/2"]
[WhiteElo "2651"]
[BlackElo "2834"]
[TimeControl "180+1"]
[EndTime "15:05:16 PDT"]
[Termination "Game drawn by repetition"]

1. Nf3 {[%clk 0:03:00.9]} 1... a6 {[%clk 0:02:57.7]} 2. g3 {[%clk 0:03:00.5]}
2... b5 {[%clk 0:02:53.8]} 3. Bg2 {[%clk 0:03:00.9]} 3... Bb7 {[%clk 0:02:52.7]}
4. O-O {[%clk 0:03:01.4]} 4... Nf6 {[%clk 0:02:51.9]} 5. b3 {[%clk 0:03:00.1]}
5... g6 {[%clk 0:02:50.8]} 6. c4 {[%clk 0:02:59.9]} 6... Bg7 {[%clk 0:02:48.1]}
7. Bb2 {[%clk 0:02:59.2]} 7... O-O {[%clk 0:02:47.4]} 8. d3 {[%clk 0:02:55.3]}
8... c5 {[%clk 0:02:47.3]} 9. Nc3 {[%clk 0:02:52.7]} 9... b4 {[%clk 0:02:41]}
10. Na4 {[%clk 0:02:52.5]} 10... d6 {[%clk 0:02:41.3]} 11. a3 {[%clk 0:02:52.6]}
11... a5 {[%clk 0:02:39.3]} 12. axb4 {[%clk 0:02:42.8]} 12... axb4 {[%clk
0:02:40.2]} 13. Ra2 {[%clk 0:02:42.2]} 13... Nbd7 {[%clk 0:02:20]} 14. Qa1
{[%clk 0:02:39.3]} 14... Qc7 {[%clk 0:02:16.3]} 15. d4 {[%clk 0:02:26.8]} 15...
Ne4 {[%clk 0:02:12.1]} 16. dxc5 {[%clk 0:02:19.3]} 16... Bxb2 {[%clk 0:02:08.9]}
17. Qxb2 {[%clk 0:01:49.9]} 17... Ndxc5 {[%clk 0:02:06.2]} 18. Rfa1 {[%clk
0:01:38]} 18... Nxa4 {[%clk 0:01:29.4]} 19. Rxa4 {[%clk 0:01:36.8]} 19... Rxa4
{[%clk 0:01:29.9]} 20. Rxa4 {[%clk 0:01:35.6]} 20... Bc6 {[%clk 0:01:30.4]} 21.
Ra1 {[%clk 0:01:01.4]} 21... Nc3 {[%clk 0:01:19.5]} 22. Qd2 {[%clk 0:01:00.8]}
22... Qb7 {[%clk 0:01:14.1]} 23. Nh4 {[%clk 0:00:47.6]} 23... Bxg2 {[%clk
0:01:10.2]} 24. Nxg2 {[%clk 0:00:48.5]} 24... Ra8 {[%clk 0:01:10]} 25. Rxa8+
{[%clk 0:00:36.9]} 25... Qxa8 {[%clk 0:01:10.9]} 26. Nf4 {[%clk 0:00:26.2]}
26... Qa1+ {[%clk 0:00:57.8]} 27. Kg2 {[%clk 0:00:25.6]} 27... Qb1 {[%clk
0:00:57]} 28. Qe3 {[%clk 0:00:16.9]} 28... e5 {[%clk 0:00:38.8]} 29. Nd5 {[%clk
0:00:15.7]} 29... Qxb3 {[%clk 0:00:09]} 30. Nf6+ {[%clk 0:00:15.8]} 30... Kg7
{[%clk 0:00:08]} 31. Ne8+ {[%clk 0:00:15.9]} 31... Kf8 {[%clk 0:00:07.6]} 32.
Nxd6 {[%clk 0:00:16.6]} 32... e4 {[%clk 0:00:06.4]} 33. Qc5 {[%clk 0:00:12.9]}
33... Na4 {[%clk 0:00:03.5]} 34. Qc8+ {[%clk 0:00:12.5]} 34... Kg7 {[%clk
0:00:03.4]} 35. Ne8+ {[%clk 0:00:11.9]} 35... Kf8 {[%clk 0:00:02.2]} 36. Nf6+
{[%clk 0:00:11.6]} 36... Kg7 {[%clk 0:00:02.5]} 37. Ne8+ {[%clk 0:00:11.7]}
37... Kf8 {[%clk 0:00:02.9]} 38. Nf6+ {[%clk 0:00:11.9]} 38... Kg7 {[%clk
0:00:03.4]} 39. Ne8+ {[%clk 0:00:08.8]} 1/2-1/2